fUSD/lending_fUSD_20240901
["ID","MTS","AMOUNT","RATE_DAILY","PERIOD"]
[336816778,1725188940113,756.83,0.00030982,30]
[336816779,1725188940184,1398.04,0.00030982,30]
[336816780,1725188940319,1175.52,0.00030982,30]
[336816781,1725188940373,500.0,0.00030982,30]
[336816782,1725188940430,588.77,0.00030982,30]
[336816783,1725188940487,756.83,0.00030982,30]
[336816784,1725188940539,1398.04,0.00030982,30]
[336816785,1725188940594,1175.52376142,0.00030982,30]
[336816786,1725188940649,588.77,0.00030982,30]
[336816787,1725188940703,500.0,0.00030982,30]
[336816788,1725188940753,756.83,0.00030982,30]
[336816789,1725188940819,1398.16243881,0.00030982,30]
[336816790,1725188940923,588.77,0.00030982,30]
[336816791,1725188940979,500.0,0.00030982,30]
[336816792,1725188941069,756.83,0.00030982,30]
[336816793,1725188941344,500.0,0.00030982,30]
[336816794,1725188941398,588.77,0.00030982,30]
[336816795,1725188941447,756.83,0.00030982,30]
[336816796,1725188941555,500.0,0.00030982,30]
[336816797,1725188941605,588.77,0.00030982,30]
[336816798,1725188941657,756.83,0.00030982,30]
[336816799,1725188941714,756.83,0.00030982,30]
[336816800,1725188941766,500.0,0.00030982,30]
[336816801,1725188941849,756.83,0.00030982,30]
[336816802,1725188941901,500.0,0.00030982,30]
[336816803,1725188941952,588.77,0.00030982,30]
[336816804,1725188942002,755.24,0.00030982,30]
[336816805,1725188942062,756.83,0.00030982,30]
[336816806,1725188942117,500.0,0.00030982,30]
[336816807,1725188942173,588.77,0.00030982,30]
[336816808,1725188942226,755.24,0.00030982,30]
[336816809,1725188942351,756.83,0.00030982,30]
[336816810,1725188942403,500.0,0.00030982,30]
[336816811,1725188942452,588.77,0.00030982,30]
[336816812,1725188942501,755.24,0.00030982,30]
[336816813,1725188942570,756.83,0.00030982,30]
[336816814,1725188942628,500.0,0.00030982,30]
[336816815,1725188942681,755.24,0.00030982,30]
[336816816,1725188942731,588.77,0.00030982,30]
[336816817,1725188942780,756.83,0.00030982,30]
[336816818,1725188942843,756.83,0.00030982,30]
[336816819,1725188942905,588.95229949,0.00030982,30]
[336816820,1725188942957,755.24,0.00030982,30]
[336816821,1725188943009,756.83,0.00030982,30]
[336816822,1725188943062,755.24,0.00030982,30]
[336816823,1725188943156,755.24,0.00030982,30]
[336816824,1725188943214,756.83,0.00030982,30]
[336816825,1725188943277,755.24,0.00030982,30]
[336816826,1725188943431,756.83,0.00030982,30]
[336816827,1725188943492,500.0,0.00030982,30]
[336816828,1725188943552,755.24,0.00030982,30]
[336816829,1725188943623,585.28859342,0.00030982,30]
[336816830,1725188943682,756.83,0.00030982,30]
[336816831,1725188943740,500.0,0.00030982,30]
[336816832,1725188943800,755.24,0.00030982,30]
[336816833,1725188943862,938.17,0.00030982,30]
[336816834,1725188943922,1094.31,0.00030982,30]
[336816835,1725188943984,756.83,0.00030982,30]
[336816836,1725188944043,500.0,0.00030982,30]
[336816837,1725188944103,755.24,0.00030982,30]
[336816838,1725188944186,938.17,0.00030982,30]
[336816839,1725188944306,1094.31,0.00030982,30]
[336816840,1725188944358,757.03766416,0.00030982,30]
[336816841,1725188944425,755.24,0.00030982,30]
[336816842,1725188944478,938.17,0.00030982,30]
[336816843,1725188944532,1094.31,0.00030982,30]
[336816844,1725188944587,755.24,0.00030982,30]
[336816845,1725188944643,1402.8,0.00030982,30]
[336816846,1725188944766,1094.31,0.00030982,30]
[336816847,1725188944851,938.17,0.00030982,30]
[336816848,1725188944907,755.24,0.00030982,30]
[336816849,1725188944960,1402.8,0.00030982,30]
[336816850,1725188945012,1094.31,0.00030982,30]
[336816851,1725188945068,938.17,0.00030982,30]
[336816852,1725188945122,755.24,0.00030982,30]
[336816853,1725188945265,500.0,0.00030982,30]
[336816854,1725188945315,938.17,0.00030982,30]
[336816855,1725188945373,1427.25,0.00030982,30]
[336816856,1725188945431,755.24,0.00030982,30]
[336816857,1725188945482,1402.8,0.00030982,30]
[336816858,1725188945540,938.17,0.00030982,30]
[336816859,1725188945590,1094.31,0.00030982,30]
[336816860,1725188945643,1427.25,0.00030982,30]
[336816861,1725188945699,755.24,0.00030982,30]
[336816862,1725188945750,1402.8,0.00030982,30]
[336816863,1725188945834,938.17,0.00030982,30]
[336816864,1725188945890,1094.31,0.00030982,30]
[336816865,1725188945950,1427.25,0.00030982,30]
[336816866,1725188946004,1402.8,0.00030982,30]
[336816867,1725188946257,755.24,0.00030982,30]
[336816868,1725188946314,938.17,0.00030982,30]
[336816869,1725188946369,1094.31,0.00030982,30]
[336816870,1725188946420,1427.25,0.00030982,30]
[336816871,1725188946475,1402.8,0.00030982,30]
[336816872,1725188946536,755.24,0.00030982,30]
[336816873,1725188946590,1094.31,0.00030982,30]
[336816874,1725188946657,1427.25,0.00030982,30]
[336816875,1725188946715,1402.8,0.00030982,30]
[336816876,1725188946770,755.24,0.00030982,30]
[336816877,1725188946824,938.17,0.00030982,30]
[336816878,1725188946882,1094.31,0.00030982,30]
[336816879,1725188946936,1402.8,0.00030982,30]
[336816880,1725188946995,755.24,0.00030982,30]
[336816881,1725188947049,938.17,0.00030982,30]
[336816882,1725188947101,1094.31,0.00030982,30]
[336816883,1725188947161,1427.25,0.00030982,30]
[336816884,1725188947219,1402.8,0.00030982,30]
[336816885,1725188947275,755.24,0.00030982,30]
[336816886,1725188947335,938.17,0.00030982,30]
[336816887,1725188947391,1094.31,0.00030982,30]
[336816888,1725188947447,1427.25,0.00030982,30]
[336816889,1725188947500,1402.8,0.00030982,30]
[336816890,1725188947552,755.24,0.00030982,30]
[336816891,1725188947604,541.68204671,0.00030982,30]
[336816892,1725188947659,938.17,0.00030982,30]
[336816893,1725188947710,1094.31,0.00030982,30]
[336816894,1725188947766,1427.25,0.00030982,30]
[336816895,1725188947934,1094.31,0.00030982,30]
[336816896,1725188947989,938.17,0.00030982,30]
[336816897,1725188948116,1402.8,0.00030982,30]
[336816898,1725188948238,1427.25,0.00030982,30]
[336816899,1725188948310,1094.31,0.00030982,30]
[336816900,1725188948361,938.17,0.00030982,30]
[336816901,1725188948412,755.30315576,0.00030982,30]
[336816902,1725188948464,1427.25,0.00030982,30]
[336816903,1725188948516,1402.8,0.00030982,30]
[336816904,1725188948568,1094.31,0.00030982,30]
[336816905,1725188948621,938.17,0.00030982,30]
[336816906,1725188948676,1427.25,0.00030982,30]
[336816907,1725188948728,1402.8,0.00030982,30]
[336816908,1725188948780,1094.31,0.00030982,30]
[336816909,1725188948839,938.17,0.00030982,30]
[336816910,1725188948903,1427.25,0.00030982,30]
[336816911,1725188948953,1402.8,0.00030982,30]
[336816912,1725188949004,1094.31,0.00030982,30]
[336816913,1725188949058,938.17,0.00030982,30]
[336816914,1725188949529,1427.25,0.00030982,30]
[336816915,1725188949585,1402.8,0.00030982,30]
[336816916,1725188949640,1094.31,0.00030982,30]
[336816917,1725188950329,1427.25,0.00030982,30]
[336816918,1725188950380,1402.8,0.00030982,30]
[336816919,1725188950431,1094.31,0.00030982,30]
[336816920,1725188950559,938.17,0.00030982,30]
[336816921,1725188950614,1427.25,0.00030982,30]
[336816922,1725188950666,1402.8,0.00030982,30]
[336816923,1725188950719,1094.31,0.00030982,30]
[336816924,1725188950771,938.17,0.00030982,30]
[336816925,1725188950838,1427.25,0.00030982,30]
[336816926,1725188950898,1402.8,0.00030982,30]
[336816927,1725188951188,1094.31,0.00030982,30]
[336816928,1725188951252,938.17,0.00030982,30]
[336816929,1725188951323,1427.25,0.00030982,30]
[336816930,1725188951382,1402.8,0.00030982,30]
[336816931,1725188951441,938.17,0.00030982,30]
[336816932,1725188951495,1427.25,0.00030982,30]
[336816933,1725188951545,1094.31,0.00030982,30]
[336816934,1725188951597,1402.8,0.00030982,30]
[336816935,1725188951649,938.17,0.00030982,30]
[336816936,1725188951712,1427.25,0.00030982,30]
[336816937,1725188951769,1094.32748552,0.00030982,30]
[336816938,1725188951831,1402.8,0.00030982,30]
[336816939,1725188951983,938.24547414,0.00030982,30]
[336816940,1725188952037,1402.8,0.00030982,30]
[336816941,1725188952095,1402.8,0.00030982,30]
[336816942,1725188952148,1427.25,0.00030982,30]
[336816943,1725188952201,1402.83672347,0.00030982,30]
[336816944,1725188952254,1427.25,0.00030982,30]
[336816945,1725188952313,1427.25,0.00030982,30]
[336816946,1725188952418,1427.25,0.00030982,30]
[336816947,1725188952701,1427.35262455,0.00030982,30]
[336816948,1725188953247,917.45,0.00030982,30]
[336816949,1725188953523,917.45,0.00030982,30]
[336816950,1725188953786,917.45,0.00030982,30]
[336816951,1725188953845,1388.67,0.00030982,30]
[336816952,1725188954065,917.45,0.00030982,30]
[336816953,1725188954116,1388.67,0.00030982,30]
[336816954,1725188954169,500.0,0.00030982,30]
[336816955,1725188954345,917.45,0.00030982,30]
[336816956,1725188954399,500.0,0.00030982,30]
[336816957,1725188954454,1388.67,0.00030982,30]
[336816958,1725188954619,1388.67,0.00030982,30]
[336816959,1725188954674,425.15492518,0.00030982,30]
[336816960,1725188954793,500.0,0.00030982,30]
[336816961,1725188954850,917.45,0.00030982,30]
[336816962,1725188954903,500.0,0.00030982,30]
[336816963,1725188954954,529.02173049,0.00030982,30]
[336816964,1725188955008,1388.67,0.00030982,30]
[336816965,1725188955097,500.0,0.00030982,30]
[336816966,1725188955149,500.0,0.00030982,30]
[336816967,1725188955202,1388.67,0.00030982,30]
[336816968,1725188955253,917.45,0.00030982,30]
[336816969,1725188955320,349.79214218,0.00030982,30]
[336816970,1725188955370,403.27513378,0.00030982,30]
[336816971,1725188955432,1388.67,0.00030982,30]
[336816972,1725188955484,917.45,0.00030982,30]
[336816973,1725188955715,1388.67,0.00030982,30]
[336816974,1725188955767,917.45,0.00030982,30]
[336816975,1725188955977,150.0,0.00030982,30]
[336816976,1725188956030,917.45,0.00030982,30]
[336816977,1725188956083,1388.67,0.00030982,30]
[336816978,1725188956226,150.0,0.00030982,30]
[336816979,1725188956276,917.45,0.00030982,30]
[336816980,1725188956329,1388.67,0.00030982,30]
[336816981,1725188956494,150.0,0.00030982,30]
[336816982,1725188956547,917.45,0.00030982,30]
[336816983,1725188956601,1388.67,0.00030982,30]
[336816984,1725188956780,150.0,0.00030982,30]
[336816985,1725188956842,917.45,0.00030982,30]
[336816986,1725188956905,1388.67,0.00030982,30]
[336816987,1725188957051,150.0,0.00030982,30]
[336816988,1725188957134,917.45,0.00030982,30]
[336816989,1725188957189,1388.67,0.00030982,30]
[336816995,1725188957323,500.0,0.00030982,30]
[336816998,1725188957383,150.0,0.00030982,30]
[336817006,1725188957520,1388.67,0.00030982,30]
[336817007,1725188957587,574.26454415,0.00030982,30]
[336817008,1725188957641,1590.88,0.00030982,30]
[336817009,1725188957692,150.0,0.00030982,30]
[336817010,1725188957810,1388.67,0.00030982,30]
[336817011,1725188957876,1289.7,0.00030982,30]
[336817012,1725188958008,150.0,0.00030982,30]
[336817013,1725188958273,1590.88,0.00030982,30]
[336817014,1725188958328,1284.19,0.00030982,30]
[336817015,1725188958381,1289.7,0.00030982,30]
[336817016,1725188958438,1388.67,0.00030982,30]
[336817017,1725188958497,917.45,0.00030982,30]
[336817018,1725188958558,1590.88,0.00030982,30]
[336817019,1725188958616,197.53637197,0.00030982,30]
[336817020,1725188958674,1284.19,0.00030982,30]
[336817021,1725188958730,500.0,0.00030982,30]
[336817022,1725188958807,1289.7,0.00030982,30]
[336817023,1725188958868,500.0,0.00030982,30]
[336817024,1725188958928,917.45,0.00030982,30]
[336817025,1725188958985,1590.88,0.00030982,30]
[336817026,1725188959039,1284.19,0.00030982,30]
[336817027,1725188959093,500.0,0.00030982,30]
[336817028,1725188959151,1289.7,0.00030982,30]
[336817029,1725188959210,500.0,0.00030982,30]
[336817030,1725188959273,917.45,0.00030982,30]
[336817031,1725188959337,1590.88,0.00030982,30]
[336817032,1725188959397,1284.19,0.00030982,30]
[336817033,1725188959460,1388.67,0.00030982,30]
[336817034,1725188959931,500.0,0.00030982,30]
[336817035,1725188959991,500.0,0.00030982,30]
[336817036,1725188960050,1289.7,0.00030982,30]
[336817037,1725188960107,500.0,0.00030982,30]
[336817038,1725188960165,917.45,0.00030982,30]
[336817039,1725188960224,1590.88,0.00030982,30]
[336817040,1725188960284,1284.19,0.00030982,30]
[336817041,1725188960340,500.0,0.00030982,30]
[336817042,1725188960395,1388.67,0.00030982,30]
[336817043,1725188960450,500.0,0.00030982,30]
[336817044,1725188960507,1289.7,0.00030982,30]
[336817045,1725188960565,500.0,0.00030982,30]
[336817046,1725188960621,917.45,0.00030982,30]
[336817047,1725188960674,1590.88,0.00030982,30]
[336817048,1725188960728,1284.19,0.00030982,30]
[336817049,1725188960783,500.0,0.00030982,30]
[336817050,1725188960840,500.0,0.00030982,30]
[336817051,1725188960892,1388.67,0.00030982,30]
[336817052,1725188960944,500.0,0.00030982,30]
[336817053,1725188961000,917.45,0.00030982,30]
[336817054,1725188961050,1289.7,0.00030982,30]
[336817055,1725188961101,1590.88,0.00030982,30]
[336817056,1725188961152,458.65760293,0.00030982,30]
[336817057,1725188961202,500.0,0.00030982,30]
[336817058,1725188961256,1284.19,0.00030982,30]
[336817059,1725188961309,1388.67,0.00030982,30]
[336817060,1725188961358,500.0,0.00030982,30]
[336817061,1725188961411,1289.7,0.00030982,30]
[336817062,1725188961460,1590.88,0.00030982,30]
[336817063,1725188961509,917.45,0.00030982,30]
[336817064,1725188961556,500.0,0.00030982,30]
[336817065,1725188961608,1284.19,0.00030982,30]
[336817066,1725188961659,1388.67,0.00030982,30]
[336817067,1725188961710,500.0,0.00030982,30]
[336817068,1725188961760,1289.7,0.00030982,30]
[336817069,1725188961814,917.45,0.00030982,30]
[336817070,1725188961867,500.0,0.00030982,30]
[336817071,1725188961922,1590.88,0.00030982,30]
[336817072,1725188961975,1284.19,0.00030982,30]
[336817073,1725188962027,500.0,0.00030982,30]
[336817074,1725188962080,1289.7,0.00030982,30]
[336817076,1725188962131,500.0,0.00030982,30]
[336817078,1725188962184,1284.19,0.00030982,30]
[336817079,1725188962237,1590.88,0.00030982,30]
[336817080,1725188962297,917.45,0.00030982,30]
[336817081,1725188962357,500.0,0.00030982,30]
[336817082,1725188962412,1388.67,0.00030982,30]
[336817083,1725188962468,1289.7,0.00030982,30]
[336817084,1725188962524,500.0,0.00030982,30]
[336817085,1725188962579,1284.19,0.00030982,30]
[336817086,1725188962865,1590.88,0.00030982,30]
[336817087,1725188962921,917.52355828,0.00030982,30]
[336817088,1725188962979,500.0,0.00030982,30]
[336817089,1725188963034,1289.7,0.00030982,30]
[336817090,1725188963089,1388.67,0.00030982,30]
[336817091,1725188963140,500.0,0.00030982,30]
[336817092,1725188963189,1284.19,0.00030982,30]
[336817093,1725188963245,1590.88,0.00030982,30]
[336817094,1725188963295,500.0,0.00030982,30]
[336817095,1725188963347,1289.7,0.00030982,30]
[336817096,1725188963396,1284.19,0.00030982,30]
[336817097,1725188963449,500.0,0.00030982,30]
[336817098,1725188963499,1590.88,0.00030982,30]
[336817099,1725188963550,500.0,0.00030982,30]
[336817100,1725188963601,1284.19,0.00030982,30]
[336817101,1725188963654,500.0,0.00030982,30]
[336817102,1725188963707,1590.88,0.00030982,30]
[336817103,1725188963759,1289.7,0.00030982,30]
[336817104,1725188963817,1388.78443311,0.00030982,30]
[336817105,1725188963880,500.0,0.00030982,30]
[336817106,1725188963935,1284.19,0.00030982,30]
[336817107,1725188963990,500.0,0.00030982,30]
[336817108,1725188964043,1590.88,0.00030982,30]
[336817109,1725188964151,1289.7,0.00030982,30]
[336817110,1725188964243,500.0,0.00030982,30]
[336817111,1725188964301,1284.19,0.00030982,30]
[336817112,1725188964358,500.0,0.00030982,30]
[336817113,1725188964414,1590.88,0.00030982,30]
[336817114,1725188964470,1289.7,0.00030982,30]
[336817115,1725188964582,500.0,0.00030982,30]
[336817116,1725188964643,1284.19,0.00030982,30]
[336817117,1725188964702,500.0,0.00030982,30]
[336817118,1725188964758,1590.88,0.00030982,30]
[336817119,1725188964814,500.0,0.00030982,30]
[336817120,1725188964872,1284.19,0.00030982,30]
[336817121,1725188964928,500.0,0.00030982,30]
[336817122,1725188964986,1289.7,0.00030982,30]
[336817123,1725188965041,1590.88,0.00030982,30]
[336817124,1725188965095,500.0,0.00030982,30]
[336817125,1725188965146,1284.19,0.00030982,30]
[336817126,1725188965197,1289.7,0.00030982,30]
[336817127,1725188965248,500.0,0.00030982,30]
[336817128,1725188965297,1590.88,0.00030982,30]
[336817129,1725188965349,500.0,0.00030982,30]
[336817130,1725188965401,1284.19,0.00030982,30]
[336817131,1725188965452,1289.7,0.00030982,30]
[336817132,1725188965506,1590.88,0.00030982,30]
[336817133,1725188965559,1289.7,0.00030982,30]
[336817134,1725188965611,500.0,0.00030982,30]
[336817135,1725188965667,500.0,0.00030982,30]
[336817136,1725188965719,1590.88,0.00030982,30]
[336817137,1725188965773,1284.19,0.00030982,30]
[336817138,1725188965823,1289.7,0.00030982,30]
[336817139,1725188965879,500.0,0.00030982,30]
[336817140,1725188965929,500.0,0.00030982,30]
[336817141,1725188965982,1590.88,0.00030982,30]
[336817142,1725188966033,1284.19,0.00030982,30]
[336817143,1725188966083,1289.7,0.00030982,30]
[336817144,1725188966133,500.0,0.00030982,30]
[336817145,1725188966182,194.39076039,0.00030982,30]
[336817154,1725189031580,-5794.89530847,0.0001142,2]
[336817155,1725189031591,-250.0,0.00011518,2]
[336817156,1725189031600,-155.67,0.0001152,2]
[336817157,1725189031610,-353.41,0.00011522,2]
[336817158,1725189031619,-150.0,0.00011522,2]
[336817159,1725189031628,-1000.0,0.00011542,2]
[336817160,1725189031638,-206.5,0.00011544,2]
[336817161,1725189031648,-250.0,0.0001155,2]
[336817162,1725189031657,-369.56,0.00011881,2]
[336817163,1725189031666,-475.96,0.00012258,2]
[336817164,1725189031675,-150.0,0.0001226,2]
[336817165,1725189031684,-475.96,0.00012261,2]
[336817166,1725189031693,-499.99,0.00012261,2]
[336817167,1725189031702,-475.96,0.00012264,2]
[336817168,1725189031712,-475.96,0.00012268,2]
[336817169,1725189031721,-475.96,0.00012271,2]
[336817170,1725189031731,-475.96,0.00012274,2]
[336817171,1725189031740,-475.96,0.00012277,2]
[336817172,1725189031749,-475.96,0.00012281,2]
[336817173,1725189031758,-475.96,0.00012284,2]
[336817174,1725189031768,-475.96,0.00012287,2]
[336817175,1725189031778,-300.0,0.00012289,2]
[336817176,1725189031788,-475.96,0.0001229,2]
[336817177,1725189031797,-475.96,0.00012293,2]
[336817178,1725189031808,-475.96,0.00012297,2]
[336817179,1725189031821,-475.96,0.000123,2]
[336817180,1725189031830,-1059.939,0.00012303,2]
[336817181,1725189031843,-475.96,0.00012303,2]
[336817182,1725189031852,-475.96,0.00012306,2]
[336817183,1725189031863,-475.96,0.0001231,2]
[336817184,1725189031873,-475.96,0.00012313,2]
[336817185,1725189031884,-475.96,0.00012316,2]
[336817186,1725189031895,-475.96,0.00012319,2]
[336817187,1725189031904,-421.85,0.000124,2]
[336817188,1725189031913,-203.03,0.00012481,2]
[336817189,1725189031923,-421.85,0.000125,2]
[336817190,1725189031932,-12219.9045,0.0001258,2]
[336817191,1725189031942,-421.85,0.000126,2]
[336817192,1725189031951,-421.85,0.000126,2]
[336817194,1725189031962,-421.85,0.00012641,2]
[336817196,1725189031971,-230.057,0.00012799,2]
[336817198,1725189031980,-150.0,0.00012799,2]
[336817199,1725189031989,-5853.0,0.00012799,2]
[336817200,1725189031997,-3732.0,0.00012799,2]
[336817201,1725189032007,-13462.0,0.00012799,2]
[336817202,1725189032016,-300.09,0.00012852,2]
[336817203,1725189032025,-159.52165,0.0001287,2]
[336817204,1725189032035,-3719.3558,0.00012899,2]
[336817205,1725189032045,-162.72061766,0.000129,2]
[336817206,1725189032055,-352.73051695,0.000129,2]
[336817207,1725189032065,-155.67,0.0001296,2]
[336817208,1725189032076,-500.0,0.00012973,2]
[336817209,1725189032085,-200.0,0.00012973,2]
[336817210,1725189032094,-1000.0,0.00012985,2]
[336817211,1725189032104,-435.36023836,0.0001299,2]
[336817212,1725189032114,-191.19199652,0.00012997,2]
[336817213,1725189032126,-170.124,0.00012999,2]
[336817214,1725189032135,-199.852,0.00012999,2]
[336817215,1725189032144,-623.0,0.00012999,2]
[336817216,1725189032153,-447.0,0.00012999,2]
[336817217,1725189032162,-1545.0,0.00012999,2]
[336817218,1725189032171,-150.0,0.00012999,2]
[336817219,1725189032180,-810.0,0.00012999,2]
[336817220,1725189032188,-557.0,0.00012999,2]
[336817221,1725189032198,-1898.0,0.00012999,2]
[336817222,1725189032208,-598.898,0.00012999,2]
[336817223,1725189032219,-804.0,0.00012999,2]
[336817224,1725189032229,-1139.0,0.00012999,2]
[336817225,1725189032239,-1922.0,0.00012999,2]
[336817226,1725189032248,-411.47229295,0.00012999,2]
[336817227,1725189032258,-676.0,0.00013,2]
[336817228,1725189032267,-207094.2775765,0.00013,2]
[336817229,1725189032280,-71530.41587731,0.00013,2]
[336817230,1725189032291,-3410.50407077,0.00013,2]
[336817231,1725189032303,-918.885,0.00013,2]
[336817232,1725189032347,-3408.55660197,0.00013,2]
[336817233,1725189032358,-535.511,0.00013,2]
[336817234,1725189032371,-587.0,0.00013,2]
[336817235,1725189032440,-312.75876885,0.00013,2]
[336817236,1725189032451,-2599.99999999,0.00013,2]
[336817237,1725189032512,-600.0,0.00013,2]
[336817238,1725189032523,-1096.73776496,0.00013,2]
[336817239,1725189032534,-1238.04,0.00013,2]
[336817240,1725189032545,-147342.45763621,0.00013,2]
[336817241,1725189032571,-554594.28758203,0.00013,2]
[336817242,1725189032582,-746.56164777,0.00013,2]
[336817243,1725189032594,-548.61637521,0.00013,2]
[336817244,1725189032604,-984.09450233,0.00013,2]
[336817245,1725189032639,-575.10458265,0.00013,2]
[336817246,1725189032652,-1418.27759829,0.00013,2]
[336817247,1725189032664,-107640.08034493,0.00013,2]
[336817248,1725189037645,-5429.47785504,0.00013,2]
[336817249,1725189037692,-638.76806,0.00013,2]
[336817250,1725189037704,-1583.68786984,0.00013,2]
[336817251,1725189037715,-33740.1538901,0.00013,2]
[336817252,1725189037800,-1851.28133172,0.00013,2]
[336817253,1725189037859,-9011.29504231,0.00013,2]
[336817254,1725189037871,-786627.40050736,0.00013,2]
[336817255,1725189037882,-351.02300115,0.00013,2]
[336817256,1725189037896,-6767.75949706,0.00013,2]
[336817257,1725189037929,-2440.67190885,0.00013,2]
[336817258,1725189037940,-999.41556,0.00013,2]
[336817259,1725189037994,-1352.67500002,0.00013,2]
[336817260,1725189038005,-12504.31307594,0.00013,2]
[336817261,1725189038016,-102770.69666346,0.00013,2]
[336817262,1725189038027,-17230.93025997,0.00013,2]
[336817263,1725189038037,-138055.3463147,0.00013,2]
[336817264,1725189038048,-30098.5069003,0.00013,2]
[336817266,1725189038059,-23722.35011438,0.00013,2]
[336817268,1725189038069,-5979.78453988,0.00013,2]
[336817310,1725189039755,-279.72150625,0.00013,2]
[336817311,1725189039767,-3733.35497294,0.00013,2]
[336817312,1725189039825,-3968.06412907,0.00013,2]
[336817313,1725189039837,-367.40716504,0.00013,2]
[336817314,1725189039849,-2040.97346438,0.00013,2]
[336817315,1725189039861,-379.9422459,0.00013,2]
[336817316,1725189039903,-976.22792937,0.00013,2]
[336817317,1725189039915,-162712.02937707,0.00013,2]
[336817318,1725189039954,-1832.89551806,0.00013,2]
[336817319,1725189039965,-46157.95140953,0.00013,2]
[336817349,1725189044535,-1401.9999998,0.00013,2]
[336817350,1725189044547,-11013.0,0.00013,2]
[336817352,1725189045586,-11626.8152,0.00013,2]
[336817353,1725189046104,-43702.73862597,0.00013,2]
[336817354,1725189060552,526.418,0.00027,120]
[336817356,1725189173910,9385.49924032,0.00027,120]
[336817358,1725189386084,151.21,0.00010959,2]
[336817359,1725189458606,1934.0,0.00027,120]
[336817360,1725189523514,531.95,0.00027,120]
[336817361,1725189542478,531.95,0.00027,120]
[336817362,1725189564643,531.95,0.00027,120]
[336817363,1725189574919,535.79,0.00027,120]
[336817364,1725189588233,531.85,0.00027,120]
[336817365,1725189632200,531.95,0.00027,120]
[336817366,1725189640582,531.95,0.00027,120]
[336817367,1725189646676,531.95,0.00027,120]
[336817368,1725189657384,603.7,0.00010959,2]
[336817369,1725189695375,7368.8746,0.00010918,2]
[336817370,1725189742296,938.72,0.00010376,2]
[336817371,1725189804437,500.0,0.00024932,120]
[336817372,1725189902191,167.98,0.00010959,2]
[336817374,1725189935439,21278.05531702,9.5e-05,2]
[336817375,1725189953309,23693.51950352,6.94e-05,2]
[336817376,1725189972154,500.0,6.94e-05,2]
[336817377,1725189972484,503.0,6.94e-05,2]
[336817385,1725190074076,1662.73284004,0.0001,2]
[336817386,1725190077127,65066.66673121,0.00011,2]
[336817387,1725190108912,-154.02485016,0.00011688,2]